bitfinex/quotes_ETHUSD_20240603
["timestamp","ask_amount","ask_price","bid_price","bid_amount"]
[1717431341880,2.1341995,3788.5,3787.9,2.63997]
[1717431342093,2.70479759,3788.5,3788.0,1.32126577]
[1717431343290,1.58267679,3788.4,3788.0,1.32126577]
[1717431343616,1.58267679,3788.4,3787.9,2.63997]
[1717431343769,0.50192976,3788.3,3787.9,3.96123577]
[1717431344078,2.65762462,3788.3,3787.9,3.96123577]
[1717431344252,1.58506975,3788.2,3787.5,2.64019]
[1717431344453,4.45530502,3788.1,3787.5,2.64019]
[1717431344668,1.58495389,3787.9,3787.5,2.64019]
[1717431344840,1.58495389,3787.7,3787.2,2.64047]
[1717431345047,1.58495389,3787.7,3787.3,1.32126577]
[1717431345241,1.58495389,3787.6,3787.3,1.32126577]
[1717431345447,1.58495389,3787.6,3787.2,2.64047]
[1717431345650,1.58495389,3787.6,3787.2,3.96173577]
[1717431347275,0.50068277,3787.8,3787.2,3.96173577]
[1717431347483,1.58502283,3787.6,3787.2,3.96173577]
[1717431347888,2.15571998,3787.5,3787.2,3.96173577]
[1717431348054,2.15571998,3787.4,3787.2,2.64047]
[1717431348263,2.15571998,3787.3,3787.2,2.64047]
[1717431348587,1.58502283,3787.3,3787.2,2.64047]
[1717431349305,2.15571998,3787.3,3787.2,2.64047]
[1717431349612,1.58502283,3787.4,3787.2,2.64047]
[1717431349757,2.15571998,3787.4,3787.2,2.64047]
[1717431349958,1.58502283,3787.4,3787.2,2.64047]
[1717431350860,1.58502283,3787.5,3787.2,2.64047]
[1717431351729,1.58502283,3787.5,3787.4,2.64033]
[1717431352011,1.58502283,3787.7,3787.4,3.96159577]
[1717431352171,1.58502283,3787.7,3787.6,2.64019]
[1717431352376,0.57066363,3787.7,3787.6,3.96145577]
[1717431352577,1.58502283,3787.8,3787.6,3.96145577]
[1717431352777,2.15568646,3787.8,3787.7,1.32126577]
[1717431353135,1.58502283,3787.8,3787.7,1.32126577]
[1717431353476,1.58502283,3787.9,3787.8,2.64005]
[1717431353815,1.58502283,3787.9,3787.8,3.96131577]
[1717431354122,2.15568646,3788.0,3787.8,3.96131577]
[1717431354332,2.15568646,3788.0,3787.9,1.32126577]
[1717431354483,1.12218634,3788.0,3787.9,1.32126577]
[1717431354888,1.12218634,3788.0,3787.8,2.64005]
[1717431354889,0.57066363,3788.0,3787.8,2.64005]
[1717431355090,1.12253227,3787.9,3787.4,2.64026]
[1717431355331,0.83055926,3788.0,3787.6,2.64018]
[1717431355332,1.5851513,3787.7,3787.6,2.64018]
[1717431355542,0.55186864,3787.8,3787.6,3.96144577]
[1717431355741,2.15583374,3787.7,3787.6,2.64018]
[1717431355962,2.13704051,3787.7,3787.6,2.64018]
[1717431356095,1.12253051,3787.7,3787.2,2.6404]
[1717431356293,1.12253051,3787.7,3787.2,3.96166577]
[1717431356294,2.70809142,3787.6,3787.2,3.96166577]
[1717431356641,2.70809142,3787.5,3787.2,3.96166577]
[1717431359327,2.98631951,3787.8,3787.6,3.96145577]
[1717431359517,0.55275811,3787.7,3787.6,3.96145577]
[1717431360301,0.55275811,3787.7,3787.3,2.64039]
[1717431360530,0.55279123,3787.5,3787.3,2.64039]
[1717431360836,0.83055926,3787.5,3787.3,2.64039]
[1717431361019,0.83055926,3787.4,3787.3,2.64039]
[1717431361611,0.66239628,3787.4,3787.3,3.96165577]
[1717431361809,0.09175727,3787.4,3787.3,3.96165577]
[1717431362009,0.09175727,3787.4,3787.3,2.64039]
[1717431362209,0.66245621,3787.4,3787.3,2.64039]
[1717431362408,2.7841585,3787.4,3787.3,2.64039]
[1717431363913,2.24691573,3787.4,3787.3,2.64039]
[1717431364652,2.24691573,3787.4,3787.0,2.6406]
[1717431364940,2.24691573,3787.4,3787.1,1.32126577]
[1717431365336,1.10640957,3787.2,3787.1,1.32126577]
[1717431365517,1.19816684,3787.2,3787.1,1.32126577]
[1717431366213,2.78253078,3787.2,3787.1,1.32126577]
[1717431366626,2.78253078,3787.2,3786.7,2.6408]
[1717431366837,0.82968311,3786.9,3786.8,1.32126577]
[1717431367113,0.09175727,3786.9,3786.8,1.32126577]
[1717431367309,0.82918903,3786.9,3786.8,3.96201577]
[1717431369407,0.57076527,3787.0,3786.8,4.54921735]
[1717431369408,0.82918903,3787.0,3786.8,4.54921735]
[1717431370151,0.55262549,3786.9,3786.8,4.54921735]
[1717431370457,0.82918903,3787.1,3786.9,2.3418]
[1717431370458,0.55262549,3787.0,3786.9,2.3418]
[1717431370651,0.55262549,3787.0,3786.9,4.54316751]
[1717431373022,0.55262549,3787.1,3787.0,2.64061]
[1717431373218,0.55262549,3787.2,3787.0,5.87187577]
[1717431373426,0.55262549,3787.4,3787.2,2.64047]
[1717431373620,0.55262549,3787.4,3787.3,1.32126577]
[1717431374728,0.82918903,3787.5,3787.3,1.32126577]
[1717431374942,0.82918903,3787.4,3787.3,1.32126577]
[1717431375472,2.98422161,3787.5,3787.4,2.64033]
[1717431375685,2.41355297,3787.5,3787.4,3.96159577]
[1717431375975,1.39985767,3787.5,3787.4,3.96159577]
[1717431376206,0.82918903,3787.5,3787.4,4.47510062]
[1717431376480,1.10640957,3787.7,3787.4,6.97070062]
[1717431376481,0.55274276,3787.7,3787.4,6.97070062]
[1717431376678,0.55274276,3787.7,3787.6,2.64019]
[1717431376979,0.55274276,3787.7,3787.6,4.65851183]
[1717431377277,0.55274276,3787.8,3787.6,4.65851183]
[1717431377566,0.55274276,3787.7,3787.6,3.33724606]
[1717431377932,0.55274276,3787.7,3787.6,4.65851183]
[1717431378544,0.55274276,3787.8,3787.6,4.65851183]
[1717431378724,0.55274276,3787.8,3787.7,1.32126577]
[1717431380577,0.55274276,3787.8,3787.7,2.08802744]
[1717431380875,0.55274276,3787.9,3787.8,2.64005]
[1717431381077,0.55274276,3787.9,3787.8,3.96131577]
[1717431381601,0.0917378,3788.2,3787.8,3.96131577]
[1717431381602,0.82918903,3788.0,3787.8,3.96131577]
[1717431381899,0.82918903,3788.0,3787.9,1.32126577]
[1717431382420,0.82918903,3788.0,3787.9,1.98507351]
[1717431382624,0.82918903,3788.1,3788.0,2.63991]
[1717431382921,0.82918903,3788.2,3788.0,3.96117577]
[1717431383077,0.82918903,3788.2,3788.1,1.32126577]
[1717431384489,1.19814424,3788.3,3788.1,1.32126577]
[1717431384697,0.09173467,3788.2,3788.1,1.32126577]
[1717431385437,0.09173467,3788.2,3788.0,2.63991]
[1717431385708,1.19715939,3788.1,3787.6,2.64013]
[1717431385863,0.82905473,3787.9,3787.8,2.64004]
[1717431386066,0.82905473,3787.9,3787.8,3.96130577]
[1717431389084,0.5525599,3787.9,3787.8,3.96130577]
[1717431389332,0.5525599,3787.9,3787.8,6.21980577]
[1717431389616,0.5525599,3788.0,3787.8,7.35967265]
[1717431389831,0.5525599,3788.0,3787.9,1.32126577]
[1717431389980,0.5525599,3788.1,3788.0,2.63991]
[1717431390316,0.5525599,3788.1,3788.0,3.96117577]
[1717431390503,0.5525599,3788.2,3788.0,4.69713003]
[1717431390705,0.5525599,3788.2,3788.1,1.32126577]
[1717431390947,0.82905473,3788.3,3788.2,2.63977]
[1717431391252,0.82905473,3788.3,3788.2,3.96103577]
[1717431392388,0.82905473,3788.4,3788.2,3.96103577]
[1717431392632,0.82905473,3788.4,3788.3,1.32126577]
[1717431392917,1.76773393,3788.4,3788.3,1.32126577]
[1717431393513,1.19715837,3788.4,3788.3,1.32126577]
[1717431394309,2.4416,3788.3,3787.8,2.63999]
[1717431394512,0.82826011,3788.0,3787.9,1.32126577]
[1717431394813,0.09174613,3788.0,3787.9,1.32126577]
[1717431395027,1.19609295,3788.0,3787.9,1.32126577]
[1717431396118,0.09174613,3788.0,3787.9,1.32126577]
[1717431396474,1.19609295,3788.0,3787.9,1.32126577]
[1717431397516,2.77911281,3788.0,3787.9,1.32126577]
[1717431398872,3.49648303,3788.0,3787.5,2.64026]
[1717431399103,0.82800461,3787.8,3787.6,1.32126577]
[1717431399272,1.39863168,3787.8,3787.6,1.32126577]
[1717431399471,0.82800461,3787.7,3787.6,1.32126577]
[1717431399806,1.67414905,3787.7,3787.6,1.32126577]
[1717431400513,1.76679596,3787.7,3787.6,1.32126577]
[1717431400670,2.08148212,3787.7,3787.1,2.64048]
[1717431400873,0.82813072,3787.3,3787.2,1.32126577]
[1717431401077,2.41076658,3787.3,3787.2,1.32126577]
[1717431401305,2.41076658,3787.3,3786.6,2.2534]
[1717431401306,2.98143535,3787.3,3786.7,2.64077]
[1717431401521,0.55204795,3786.9,3786.8,1.32126577]
[1717431402087,2.98145558,3787.0,3786.8,1.32126577]
[1717431402417,2.24516711,3786.9,3786.3,2.64105]
[1717431402602,0.55210033,3786.6,3786.4,1.32126577]
[1717431402910,0.55210033,3786.7,3786.5,2.64096]
[1717431403117,0.55210033,3786.7,3786.6,1.32126577]
[1717431403885,0.8281505,3786.8,3786.6,1.32126577]
[1717431404324,0.5520324,3786.7,3786.6,1.32126577]
[1717431405040,0.8281505,3786.8,3786.6,1.32126577]
[1717431405805,0.8281505,3786.8,3786.1,3.69827]
[1717431406000,0.55189063,3786.5,3786.2,1.32126577]
[1717431406894,0.55189063,3786.6,3786.3,2.6411]
[1717431407138,0.55189063,3786.6,3786.4,1.32126577]
[1717431407434,0.55189063,3786.7,3786.4,1.32126577]
[1717431407648,0.55189063,3786.7,3786.5,2.64096]
[1717431407791,0.55189063,3786.7,3786.6,1.32126577]
[1717431407991,0.55189063,3786.8,3786.6,1.32126577]
[1717431408506,0.55189063,3786.7,3786.6,1.32126577]
[1717431410235,0.55189063,3786.8,3786.6,1.32126577]
[1717431411547,0.55189063,3786.9,3786.7,2.64082]
[1717431411706,0.55189063,3787.0,3786.9,2.64068]
[1717431411902,0.55189063,3787.3,3786.9,3.96194577]
[1717431412101,2.68740452,3787.7,3786.7,1.91]
[1717431412102,0.55189063,3787.4,3787.1,2.64054]
[1717431412330,0.55189063,3787.5,3787.2,1.32126577]
[1717431412532,0.55189063,3787.4,3787.2,1.32126577]
[1717431412899,0.55189063,3787.3,3787.2,1.32126577]
[1717431413305,0.55189063,3787.3,3787.2,3.60576577]
[1717431413592,0.55189063,3787.7,3787.3,2.64038]
[1717431413805,0.55189063,3787.7,3787.5,4.55026]
[1717431414005,0.8281505,3788.2,3787.8,2.64]
[1717431414006,0.55189063,3788.2,3787.8,2.64]
[1717431414193,0.55189063,3788.2,3787.9,1.32126577]
[1717431415596,0.55189063,3788.1,3787.9,1.32126577]
[1717431416295,0.55189063,3788.0,3787.9,1.32126577]
[1717431416895,0.55189063,3788.1,3787.9,1.32126577]
[1717431418002,0.55189063,3788.0,3787.9,1.32126577]
[1717431418227,0.55189063,3788.1,3787.9,1.32126577]
[1717431419597,0.55189063,3788.1,3788.0,2.63991]
[1717431419916,0.55189063,3788.1,3788.0,3.96117577]
[1717431420122,0.55189063,3788.2,3788.0,3.96117577]
[1717431420321,0.55189063,3788.2,3788.1,1.32126577]
[1717431420897,2.68740452,3788.6,3788.1,1.32126577]
[1717431420898,0.55189063,3788.3,3788.1,1.32126577]
[1717431422438,0.9587195,3788.3,3787.6,2.64014]
[1717431422735,0.55189063,3788.2,3787.7,1.32126577]
[1717431423038,0.55189063,3788.0,3787.7,1.32126577]
[1717431423200,0.55189063,3787.9,3787.7,1.32126577]
[1717431423401,0.55189063,3787.8,3787.7,1.32126577]
[1717431423647,0.55189063,3787.8,3787.2,2.64044]
[1717431423897,0.55189063,3787.8,3786.8,9.7955]
[1717431423898,0.55189063,3787.5,3786.8,2.64071]
[1717431424122,0.55189063,3787.4,3786.9,1.32126577]
[1717431424640,0.55189063,3787.2,3786.9,1.32126577]
[1717431424946,0.55189063,3787.3,3786.9,1.32126577]
[1717431426051,0.55189063,3787.2,3786.9,1.32126577]
[1717431426951,0.55189063,3787.3,3787.0,2.64059]
[1717431427246,0.55189063,3787.3,3787.1,1.32126577]
[1717431427762,0.55189063,3787.4,3787.1,1.32126577]
[1717431428308,0.55189063,3787.3,3787.1,1.32126577]
[1717431428549,0.55189063,3787.4,3787.1,1.32126577]
[1717431428839,0.55189063,3787.3,3787.1,1.32126577]
[1717431429252,0.55189063,3787.2,3787.1,1.32126577]
[1717431430006,0.55189063,3787.3,3787.1,1.32126577]
[1717431431749,0.55189063,3787.3,3787.1,1.71745135]
[1717431433902,0.8281505,3787.5,3787.1,1.71745135]
[1717431433903,0.55189063,3787.2,3787.1,1.71745135]
[1717431435154,0.55189063,3787.3,3787.1,1.71745135]
[1717431435334,0.55189063,3787.2,3787.1,1.71745135]
[1717431436144,0.55189063,3787.2,3786.6,2.64083]
[1717431436318,0.55189063,3787.1,3786.7,1.32126577]
[1717431436520,0.55189063,3786.9,3786.7,1.32126577]
[1717431436732,0.55189063,3786.8,3786.7,1.32126577]
[1717431437443,0.55189063,3786.9,3786.7,1.32126577]
[1717431438459,0.55189063,3786.8,3786.7,1.32126577]
[1717431439566,0.55189063,3786.8,3786.2,5.64112]
[1717431439765,0.55189063,3786.7,3786.3,1.32126577]
[1717431439969,3.2871505,3786.9,3786.3,1.32126577]
[1717431439970,0.55189063,3786.6,3786.3,1.32126577]
[1717431441624,0.55189063,3786.5,3786.3,1.32126577]
[1717431441868,0.55189063,3786.5,3785.7,2.4815]
[1717431441869,0.55189063,3786.4,3785.8,2.64141]
[1717431442123,0.55189063,3786.3,3785.9,1.32126577]
[1717431442434,0.55189063,3786.1,3785.9,1.32126577]
[1717431442741,0.55189063,3786.1,3785.4,2.6417]
[1717431442742,0.55189063,3786.0,3785.4,2.6417]
[1717431442946,0.55189063,3785.8,3785.5,1.32126577]
[1717431443160,0.55189063,3785.8,3785.4,2.6417]
[1717431443367,0.55189063,3785.7,3785.4,1.32126577]
[1717431444543,0.55189063,3785.8,3785.4,1.32126577]
[1717431444878,0.55189063,3785.7,3785.4,1.32126577]
[1717431445244,0.55189063,3785.8,3785.4,1.32126577]
[1717431445436,0.55189063,3785.7,3785.4,1.32126577]
[1717431446267,0.55189063,3785.7,3785.5,1.32126577]
[1717431446432,0.55189063,3785.8,3785.5,1.32126577]
[1717431448549,3.30951217,3785.8,3784.9,5.01874]
[1717431448778,3.30951217,3785.8,3785.0,1.32126577]
[1717431448779,2.64154,3785.7,3785.0,1.32126577]
[1717431448933,0.55189063,3785.5,3785.0,1.32126577]
[1717431449128,0.55189063,3785.4,3784.5,2.64231]
[1717431449341,0.68989474,3785.3,3784.6,1.32126577]
[1717431449631,0.55189063,3785.2,3784.6,1.32126577]
[1717431450031,2.4034,3785.1,3784.1,2.64261]
[1717431450264,2.95529063,3785.1,3784.1,2.64261]
[1717431450471,0.55189063,3785.0,3784.1,2.64261]
[1717431450670,0.37834411,3784.9,3784.1,2.64261]
[1717431450914,0.37834411,3784.9,3784.2,1.32126577]
[1717431451187,0.93023474,3784.9,3784.2,1.32126577]
[1717431451333,0.93023474,3784.9,3783.6,2.64293]
[1717431451334,0.55189063,3784.7,3783.6,2.64293]
[1717431451537,0.94095483,3784.6,3783.7,1.32126577]
[1717431451764,3.58327483,3784.6,3783.7,1.32126577]
[1717431451945,0.55189063,3784.3,3783.7,1.32126577]
[1717431452375,0.55189063,3784.3,3783.1,2.7101368]
[1717431452376,3.19443063,3784.3,3783.1,2.7101368]
[1717431452556,2.3636,3784.2,3783.2,1.32126577]
[1717431452764,0.55580306,3784.1,3783.2,1.32126577]
[1717431453392,3.1927,3784.0,3783.1,0.0668368]
[1717431453876,3.1927,3784.0,3783.1,1.38810257]
[1717431455451,3.1927,3784.0,3783.1,0.0668368]
[1717431457223,0.55,3784.0,3783.1,0.0668368]
[1717431457513,2.643,3783.6,3783.1,0.0668368]
[1717431457926,2.64313,3783.4,3783.1,0.0668368]
[1717431458073,2.64326,3783.2,3783.1,0.0668368]
[1717431458274,6.56092016,3783.2,3783.1,0.0668368]
[1717431458511,7.11092016,3783.2,3783.1,0.0668368]
[1717431460187,7.94666527,3783.2,3783.1,0.0668368]
[1717431460402,11.43802483,3783.2,3783.1,0.0668368]
[1717431462820,9.26382483,3783.2,3783.1,0.0668368]
[1717431463010,6.76480511,3783.2,3783.1,0.0668368]
[1717431463337,5.64326,3783.2,3783.1,0.0668368]
[1717431463497,0.14624164,3783.5,3783.1,0.0668368]
[1717431464894,0.14624164,3783.5,3783.1,1.38810257]
[1717431467031,0.14624164,3783.5,3783.2,1.32126577]
[1717431467910,0.14624164,3783.5,3783.2,1.63212814]
[1717431468331,1.58135956,3783.8,3783.3,2.64319]
[1717431468530,1.58135956,3783.8,3783.4,1.32126577]
[1717431468696,0.5713429,3783.9,3783.4,1.32126577]
[1717431468697,1.58135956,3783.9,3783.4,1.32126577]
[1717431469131,1.58135956,3783.9,3783.1,0.0668368]
[1717431469333,0.47954533,3783.8,3783.2,1.32126577]
[1717431469532,2.06090489,3783.8,3783.2,1.32126577]
[1717431469702,1.58135956,3783.7,3783.2,1.32126577]
[1717431469902,1.58135956,3783.8,3783.2,3.96448577]
[1717431470198,9.96244,3784.4,3783.4,2.64309]
[1717431470199,1.58143642,3783.9,3783.4,2.64309]
[1717431470430,9.96244,3784.4,3783.5,1.32126577]
[1717431470431,1.58143642,3784.1,3783.5,1.32126577]
[1717431470820,0.57127996,3784.3,3783.5,1.32126577]
[1717431470821,1.58143642,3784.0,3783.5,1.32126577]
[1717431471000,2.15271638,3783.9,3783.5,1.32126577]
[1717431471204,2.64244,3784.4,3783.5,1.32126577]
[1717431471205,1.58143642,3783.8,3783.5,1.32126577]
[1717431471410,1.58143642,3783.9,3783.5,1.32126577]
[1717431471661,1.58143642,3783.9,3783.6,2.64297]
[1717431471869,12.31158,3784.8,3783.8,2.64284]
[1717431471870,1.58151793,3784.0,3783.8,2.64284]
[1717431472074,9.96218,3784.8,3783.5,0.63714558]
[1717431472075,1.58151793,3784.1,3784.0,2.6427]
[1717431472235,1.58151793,3784.2,3784.0,3.96396577]
[1717431472430,10.2261,3785.2,3784.0,3.96396577]
[1717431472431,1.58151793,3784.4,3784.1,1.32126577]
[1717431472773,1.58151793,3784.4,3784.2,2.64256]
[1717431473081,1.58191305,3784.8,3784.4,2.64242]
[1717431473248,1.58191305,3784.8,3784.6,2.64228]
[1717431473571,1.58191305,3784.9,3784.7,1.32126577]
[1717431474966,2.15301393,3784.8,3784.7,1.32126577]
[1717431475172,1.58191305,3784.8,3784.7,1.32126577]
[1717431475761,1.58191305,3784.8,3784.3,2.4007]
[1717431475980,1.58191305,3784.7,3784.4,1.32126577]
[1717431476274,2.15301393,3784.7,3784.4,1.32126577]
[1717431476436,1.58191305,3784.6,3784.4,1.32126577]
[1717431476632,1.58191305,3784.7,3784.5,2.64235]
[1717431476837,1.58191305,3784.9,3784.7,2.64221]
[1717431477032,1.58191305,3785.0,3784.8,1.71761335]
[1717431477333,1.58191305,3785.1,3784.8,1.71761335]
[1717431477761,1.58191305,3785.1,3784.9,2.64207]
[1717431477958,1.58191305,3785.1,3785.0,1.32126577]
[1717431478269,1.58214322,3785.1,3785.0,1.32126577]
[1717431478769,0.57108773,3785.3,3785.0,1.32126577]
[1717431478960,0.57108773,3785.2,3785.0,1.32126577]
[1717431479164,0.57108773,3785.1,3785.0,1.32126577]
[1717431479355,2.6414,3785.9,3785.0,1.32126577]
[1717431479551,4.1923365,3785.8,3785.0,1.32126577]
[1717431479941,1.58208019,3785.1,3785.0,1.32126577]
[1717431480475,0.57108773,3785.1,3785.0,1.32126577]
[1717431480653,2.64159,3785.6,3785.0,1.32126577]
[1717431480856,0.57108773,3785.5,3784.5,2.64235]
[1717431481187,1.58214884,3784.8,3784.1,2.6426]
[1717431481349,2.15323657,3784.7,3784.2,1.32126577]
[1717431481542,2.15323657,3784.6,3784.2,1.32126577]
[1717431481767,1.58214884,3784.6,3784.1,2.6426]
[1717431481968,1.58214884,3784.2,3784.1,3.96386577]
[1717431482242,2.15323657,3784.2,3784.1,3.96386577]
[1717431482444,1.58214884,3784.3,3784.1,3.96386577]
[1717431482643,1.58214884,3784.5,3784.2,1.32126577]
[1717431483049,2.15333519,3784.4,3784.2,1.32126577]
[1717431483250,2.64204,3785.0,3784.2,1.32126577]
[1717431483251,1.58214884,3784.5,3784.2,1.32126577]
[1717431484465,1.58214884,3784.7,3784.3,2.64248]
[1717431484787,1.58214884,3784.7,3784.5,2.64235]
[1717431484994,3.0831394,3785.8,3784.6,1.32126577]
[1717431484995,1.58214884,3784.9,3784.6,1.32126577]
[1717431485297,1.58214884,3785.0,3784.6,1.32126577]
[1717431485517,1.58214884,3785.1,3784.6,1.32126577]
[1717431485846,1.58214884,3785.2,3784.7,2.64221]
[1717431486046,1.58214884,3785.2,3784.8,1.32126577]
[1717431486298,1.58214884,3785.3,3784.8,1.32126577]
[1717431486451,2.15324521,3785.2,3784.8,1.32126577]
[1717431486670,1.58214884,3785.2,3784.8,1.32126577]
[1717431487189,1.58214884,3785.3,3784.8,1.32126577]
[1717431487980,1.58214884,3785.1,3784.8,1.32126577]
[1717431488391,1.58214884,3785.2,3784.8,1.32126577]
[1717431488737,1.58214884,3785.3,3784.8,1.32126577]
[1717431489227,1.58214884,3785.3,3784.9,2.64206]
[1717431489428,1.58214884,3785.6,3785.1,2.64192]
[1717431489586,1.58214884,3785.6,3785.2,1.32126577]
[1717431489987,1.58214884,3785.6,3785.3,2.64178]
[1717431490217,1.58214884,3785.7,3785.4,1.32126577]
[1717431490403,1.58214884,3785.9,3785.4,1.32126577]
[1717431490791,1.58214884,3786.0,3785.5,2.64164]
[1717431490984,1.58214884,3786.1,3785.6,1.32126577]
[1717431491406,0.71725596,3786.2,3785.6,1.32126577]
[1717431491407,2.2994048,3786.2,3785.6,1.32126577]
[1717431491728,2.15312038,3786.1,3785.6,1.32126577]
[1717431491935,2.15312038,3786.0,3785.6,1.32126577]
[1717431492098,2.15312038,3786.0,3785.1,2.64189]
[1717431492099,1.58214884,3786.0,3785.1,2.64189]
[1717431492281,1.58214884,3786.0,3785.2,1.32126577]
[1717431492489,1.58198377,3785.8,3785.2,1.32126577]
[1717431492687,1.58198377,3785.6,3785.2,1.32126577]
[1717431493287,0.57104601,3785.9,3785.2,1.32126577]
[1717431493288,2.15302978,3785.5,3785.2,1.32126577]
[1717431493484,1.58198377,3785.6,3785.2,1.32126577]
[1717431493707,2.1530469,3785.5,3785.2,1.32126577]
[1717431493931,1.58198377,3785.5,3785.2,1.32126577]
[1717431494355,2.1530469,3785.4,3785.2,1.32126577]
[1717431494503,1.58198377,3785.4,3785.2,1.32126577]
[1717431494904,1.58198377,3785.3,3785.2,1.32126577]
[1717431495508,1.58198377,3785.4,3785.2,1.32126577]
[1717431495905,1.58198377,3785.5,3785.2,1.32126577]
[1717431496240,1.58198377,3785.4,3785.2,1.32126577]
[1717431497183,0.57106062,3785.3,3784.7,2.64216]
[1717431497301,1.58174712,3785.1,3784.8,1.32126577]
[1717431497508,1.58174712,3785.0,3784.8,1.32126577]
[1717431498182,1.58174712,3785.0,3784.4,2.4922]
[1717431498308,1.58174712,3785.0,3784.5,1.32126577]
[1717431498309,1.73992183,3785.0,3784.5,1.32126577]
[1717431498508,1.73992183,3785.0,3783.3,7.32]
[1717431498509,1.58174712,3784.7,3783.8,2.64279]
[1717431498759,1.58174712,3784.6,3783.9,1.32126577]
[1717431499045,1.58174712,3784.4,3783.9,1.32126577]
[1717431499403,3.17106534,3785.0,3783.9,1.32126577]
[1717431499404,2.15280774,3784.3,3783.9,1.32126577]
[1717431499645,1.58174712,3784.3,3783.9,1.32126577]
[1717431500426,2.15280774,3784.2,3783.9,1.32126577]
[1717431500609,1.58174712,3784.2,3783.9,1.32126577]
[1717431500809,1.58174712,3784.3,3783.9,1.32126577]
[1717431501255,1.58174712,3784.2,3784.0,2.6427]
[1717431501555,1.58174712,3784.4,3784.1,1.32126577]
[1717431501979,1.58174712,3784.5,3784.1,1.32126577]
[1717431502151,3.0,3785.3,3784.1,1.32126577]
[1717431502152,1.58174712,3784.4,3784.1,1.32126577]
[1717431502475,0.15817471,3784.4,3784.1,1.32126577]
[1717431502680,0.57118567,3784.3,3784.1,1.32126577]
[1717431502979,0.57118567,3784.5,3784.1,1.32126577]
[1717431503182,1.58156528,3784.2,3784.1,1.32126577]
[1717431504472,2.2554,3784.6,3784.1,1.32126577]
[1717431504473,1.58156528,3784.3,3784.1,1.32126577]
[1717431505102,1.58156528,3784.4,3784.1,1.32126577]
[1717431505377,1.5815904,3784.4,3784.1,1.32126577]
[1717431507891,1.5815904,3784.5,3784.1,1.32126577]
[1717431508444,2.13348103,3784.5,3784.1,1.32126577]
[1717431509255,0.55189063,3784.4,3784.1,1.32126577]
[1717431509462,1.12310723,3784.4,3784.1,1.32126577]
[1717431509670,0.55189063,3784.4,3784.1,1.32126577]
[1717431510179,0.55189063,3784.3,3784.1,1.32126577]
[1717431510399,0.55189063,3784.2,3783.9,2.64275]
[1717431510569,0.55189063,3784.2,3784.0,1.32126577]
[1717431510945,0.55189063,3784.3,3784.0,1.32126577]
[1717431511149,0.55189063,3784.2,3784.0,1.32126577]
[1717431512466,0.55189063,3784.1,3784.0,1.32126577]
[1717431512661,0.55189063,3784.2,3784.0,1.32126577]
[1717431513296,0.55189063,3784.2,3784.1,4.97543]
[1717431513485,0.55189063,3784.2,3784.1,6.29669577]
[1717431513689,2.6852209,3784.5,3784.1,6.29669577]
[1717431513690,0.55189063,3784.3,3784.1,6.29669577]
[1717431513885,0.55189063,3784.3,3784.2,1.32126577]
[1717431514323,7.32,3785.1,3784.2,1.32126577]
[1717431514324,0.55189063,3784.4,3784.2,1.32126577]
[1717431514532,0.8281505,3784.4,3784.2,1.32126577]
[1717431514876,0.55089407,3784.3,3784.2,1.32126577]
[1717431515174,0.8281505,3784.4,3784.2,1.32126577]
[1717431515395,0.8281505,3784.4,3784.1,2.64263]
[1717431515570,0.5509469,3784.2,3784.1,2.64263]
[1717431515767,0.5509469,3784.2,3784.1,3.96389577]
[1717431515971,0.5509469,3784.3,3784.1,3.96389577]
[1717431516211,0.5509469,3784.3,3784.2,1.32126577]
[1717431517997,0.5509469,3784.4,3784.2,1.32126577]
[1717431518201,0.5509469,3784.3,3784.2,1.32126577]
[1717431518369,0.8281505,3784.4,3784.2,1.32126577]
[1717431520456,1.17948764,3784.4,3783.4,1.057801]
[1717431520572,0.5511038,3783.9,3783.5,1.32126577]
[1717431520883,0.5511038,3783.6,3783.5,1.32126577]
[1717431522922,2.9803272,3783.7,3783.1,0.0668368]
[1717431523071,1.08467402,3783.9,3783.2,1.32126577]
[1717431523272,0.55088869,3783.5,3783.2,1.32126577]
[1717431523714,0.55088869,3783.4,3783.2,1.32126577]
[1717431524077,0.55088869,3783.4,3783.2,1.96729003]
[1717431524439,0.55088869,3783.5,3783.2,1.96729003]
[1717431524889,0.55088869,3783.5,3783.3,2.64319]
[1717431525093,0.55088869,3783.5,3783.4,1.32126577]
[1717431525426,0.55088869,3783.6,3783.4,1.32126577]
[1717431526203,0.55088869,3783.7,3783.4,1.32126577]
[1717431526799,0.55088869,3783.7,3783.6,1.91]
[1717431527005,0.55088869,3783.7,3783.6,3.23126577]
[1717431527220,1.65214106,3784.6,3783.7,2.6429]
[1717431527221,0.55088869,3784.1,3783.7,2.6429]
[1717431527420,0.55088869,3784.1,3783.8,1.96000235]
[1717431528424,0.55088869,3784.1,3783.9,2.64277]
[1717431528622,0.55088869,3784.2,3784.0,1.32126577]
[1717431528795,0.55088869,3784.1,3784.0,1.32126577]
[1717431529001,1.58031845,3784.4,3784.0,1.32126577]
[1717431529331,0.09184315,3784.3,3783.8,0.63873658]
[1717431529535,0.09184315,3784.3,3783.9,1.32126577]
[1717431529724,0.55077927,3784.0,3783.9,1.32126577]
[1717431530123,0.55077927,3784.0,3783.9,1.51726601]
[1717431532816,0.09184249,3784.3,3783.9,1.51726601]
[1717431532817,0.55077927,3784.1,3783.9,1.51726601]
[1717431533397,0.55077927,3784.0,3783.9,1.51726601]
[1717431534344,0.55077927,3784.1,3783.9,1.51726601]
[1717431534543,0.82623435,3784.2,3784.0,0.47988026]
[1717431534743,0.82623435,3784.2,3784.1,1.32126577]
[1717431536100,0.82623435,3784.2,3783.8,2.6428]
[1717431536338,0.55095731,3784.0,3783.9,1.32126577]
[1717431536639,0.82623435,3784.1,3783.9,1.32126577]
[1717431536845,0.82623435,3784.1,3783.9,1.71767235]
[1717431537003,0.55096811,3784.0,3783.9,1.71767235]
[1717431537209,0.82623435,3784.1,3784.0,2.6427]
[1717431537423,0.82623435,3784.1,3784.0,3.96396577]
[1717431537940,0.82623435,3784.2,3784.0,3.96396577]
[1717431538143,1.19350547,3784.4,3784.1,1.75730301]
[1717431538353,1.19350542,3784.3,3784.1,1.75730301]
[1717431538641,1.58062476,3784.6,3784.1,1.75730301]
[1717431538642,0.82710014,3784.2,3784.1,1.75730301]
[1717431539476,0.09183627,3784.2,3784.1,1.75730301]
[1717431539653,1.10166783,3784.3,3784.1,1.75730301]
[1717431540003,0.82732133,3784.2,3784.1,1.75730301]
[1717431540231,0.82732133,3784.2,3784.0,2.6427]
[1717431540232,1.1935036,3784.2,3783.6,2.64296]
[1717431540546,0.82745372,3783.8,3783.7,1.32126577]
[1717431543551,1.1935146,3783.8,3783.7,1.32126577]
[1717431543756,1.10166783,3783.8,3783.7,1.32126577]
[1717431544053,0.09184677,3783.8,3783.7,1.32126577]
[1717431544478,1.37947313,3784.1,3783.8,2.64284]
[1717431544614,1.37947313,3784.1,3783.9,1.32126577]
[1717431544615,0.09184265,3784.0,3783.9,1.32126577]